[Event "RUS-ch Rapid 2021"]
[Site "Sochi"]
[Date "2021.10.13"]
[Round "7.22"]
[White "Kukhmazov, Arsen"]
[Black "Truskavetsky, Alexandr"]
[Result "1/2-1/2"]
[ECO "A85"]
[WhiteElo "2472"]
[BlackElo "2371"]
[Annotator "RC"]
[PlyCount "158"]
[EventDate "2021.10.12"]
[EventType "swiss"]
[EventCountry "RUS"]
[SourceTitle "playchess.com"]
[Source "ChessBase"]
[SourceQuality "1"]
[TimeControl "900+10"]

1. d4 {[%emt 0:00:04]} f5 {[%emt 0:00:10]} 2. c4 {[%emt 0:00:00]} Nf6 {[%emt 0:
00:00]} 3. Nc3 {[%emt 0:00:03]} g6 {[%emt 0:00:07]} 4. h4 {[%emt 0:00:00]} Bg7
{[%emt 0:01:02]} 5. h5 {[%emt 0:00:00]} Nxh5 {[%emt 0:00:02]} 6. e4 {[%emt 0:
00:01]} Nf6 {[%emt 0:04:32]} 7. exf5 {[%emt 0:00:06]} gxf5 {[%emt 0:00:20]} 8.
Bh6 {[%emt 0:00:00]} Rg8 {[%emt 0:00:20]} 9. Qd2 {[%emt 0:00:56]} d6 {[%emt 0:
01:52]} 10. O-O-O {[%emt 0:01:31]} Nc6 {[%emt 0:00:18]} 11. Nf3 {[%emt 0:02:21]
} Bh8 {[%emt 0:00:50]} 12. Re1 {[%emt 0:00:46]} Ne4 {[%emt 0:02:04]} 13. Nxe4 {
[%emt 0:00:13]} fxe4 {[%emt 0:00:00]} 14. Rxe4 {[%emt 0:00:05]} Bf5 {[%emt 0:
00:07]} 15. Rf4 {[%emt 0:02:42]} Qd7 {[%emt 0:00:06]} 16. g3 {[%emt 0:04:08]}
e5 {[%emt 0:00:22]} 17. dxe5 {[%emt 0:00:14]} dxe5 {[%emt 0:00:23]} 18. Qxd7+ {
[%emt 0:00:13]} Bxd7 {[%emt 0:00:01]} 19. Re4 {[%emt 0:01:30]} O-O-O {[%emt 0:
00:00]} 20. Be3 {[%emt 0:00:09]} Nb4 {[%emt 0:00:54]} 21. Bh3 {[%emt 0:02:00]}
Rgf8 {[%emt 0:00:07]} 22. Bxd7+ {[%emt 0:01:03]} Rxd7 {[%emt 0:00:01]} 23. Ng5
{[%emt 0:00:11]} Nxa2+ {[%emt 0:01:48]} 24. Kb1 {[%emt 0:00:01]} Nb4 {[%emt 0:
00:10]} 25. Nxh7 {[%emt 0:00:41]} Rfd8 {[%emt 0:00:15]} 26. Kc1 {[%emt 0:00:00]
} Nd3+ {[%emt 0:00:20]} 27. Kb1 {[%emt 0:00:11]} Nb4 {[%emt 0:00:44]} 28. Kc1 {
[%emt 0:00:03]} Nd3+ {[%emt 0:00:57]} 29. Kb1 {[%emt 0:00:04]} Nb4 {[%emt 0:00:
00]} 30. b3 {[%emt 0:00:00]} Rd1+ {[%emt 0:00:41]} 31. Rxd1 {[%emt 0:00:02]}
Rxd1+ {[%emt 0:00:10]} 32. Kb2 {[%emt 0:00:00]} Re1 {[%emt 0:00:00]} 33. Kc3 {
[%emt 0:00:52]} a5 {[%emt 0:00:28]} 34. Rg4 {[%emt 0:00:14]} Rd1 {[%emt 0:01:
09]} 35. Rg8+ {[%emt 0:00:19]} Rd8 {[%emt 0:00:00]} 36. Rxd8+ {[%emt 0:00:03]}
Kxd8 {[%emt 0:00:00]} 37. Ng5 {[%emt 0:00:00]} Kd7 {[%emt 0:00:35]} 38. Ne4 {
[%emt 0:00:00]} b6 {[%emt 0:00:01]} 39. g4 {[%emt 0:00:07]} Ke6 {[%emt 0:00:09]
} 40. Kd2 {[%emt 0:00:28]} Bg7 {[%emt 0:00:00]} 41. f3 {[%emt 0:00:09]} Nc6 {
[%emt 0:00:24]} 42. Kd3 {[%emt 0:00:04]} Nb4+ {[%emt 0:00:04]} 43. Kd2 {
[%emt 0:00:09]} Nc6 {[%emt 0:00:02]} 44. Ke2 {[%emt 0:00:10]} Bf8 {[%emt 0:00:
17]} 45. Nc3 {[%emt 0:00:05]} Nb4 {[%emt 0:00:17]} 46. Kd2 {[%emt 0:00:15]} Be7
{[%emt 0:00:20]} 47. Ne4 {[%emt 0:00:24]} Nc6 {[%emt 0:00:04]} 48. Ke2 {
[%emt 0:00:10]} Nb4 {[%emt 0:00:15]} 49. Nc3 {[%emt 0:00:08]} Bf8 {[%emt 0:00:
06]} 50. Nb5 {[%emt 0:00:11]} Kd7 {[%emt 0:00:13]} 51. Bd2 {[%emt 0:00:20]} Nc6
{[%emt 0:00:19]} 52. Kd3 {[%emt 0:00:03]} Nd8 {[%emt 0:00:10]} 53. Ke4 {
[%emt 0:00:01]} Bg7 {[%emt 0:00:12]} 54. Kf5 {[%emt 0:00:10]} Ne6 {[%emt 0:00:
03]} 55. Be3 {[%emt 0:00:13]} c6 {[%emt 0:00:13]} 56. Na3 {[%emt 0:00:02]} Nd4+
{[%emt 0:00:03]} 57. Bxd4 {[%emt 0:00:00]} exd4 {[%emt 0:00:02]} 58. Ke4 {
[%emt 0:00:09]} Kd6 {[%emt 0:00:20]} 59. Nc2 {[%emt 0:00:00]} Kc5 {[%emt 0:00:
13]} 60. Kd3 {[%emt 0:00:01]} b5 {[%emt 0:00:04]} 61. cxb5 {[%emt 0:00:05]}
cxb5 {[%emt 0:00:01]} 62. f4 {[%emt 0:00:00]} a4 {[%emt 0:00:19]} 63. b4+ {
[%emt 0:00:56]} Kd5 {[%emt 0:00:01]} 64. g5 {[%emt 0:00:00]} Bf8 {[%emt 0:00:
24]} 65. Nxd4 {[%emt 0:00:08]} Bxb4 {[%emt 0:00:14]} 66. Nxb5 {[%emt 0:00:01]}
Ke6 {[%emt 0:00:12]} 67. Nd4+ {[%emt 0:00:10]} Kf7 {[%emt 0:00:03]} 68. Nc6 {
[%emt 0:00:53]} Bd6 {[%emt 0:00:10]} 69. f5 {[%emt 0:00:06]} a3 {[%emt 0:00:16]
} 70. Kc2 {[%emt 0:00:00]} Bf4 {[%emt 0:00:03]} 71. g6+ {[%emt 0:00:04]} Kf6 {
[%emt 0:00:05]} 72. Kb3 {[%emt 0:00:00]} Bh6 {[%emt 0:00:05]} 73. Nd4 {[%emt 0:
00:10]} Bf8 {[%emt 0:00:19]} 74. Ka2 {[%emt 0:00:09]} Ke5 {[%emt 0:00:16]} 75.
Kb3 {[%emt 0:00:06]} Kf6 {[%emt 0:00:04]} 76. Ne6 {[%emt 0:00:21]} Kxf5 {
[%emt 0:00:01]} 77. Nxf8 {[%emt 0:00:02]} Kf6 {[%emt 0:00:00]} 78. Kxa3 {
[%emt 0:00:02]} Kg7 {[%emt 0:00:10]} 79. Ne6+ {[%emt 0:00:01]} Kxg6 {[%emt 0:
00:00]} 1/2-1/2

[Event "RUS-ch Rapid 2021"]
[Site "Sochi"]
[Date "2021.10.13"]
[Round "7.23"]
[White "Zakaryan, David"]
[Black "Ivlev, Aleksey"]
[Result "1-0"]
[ECO "D45"]
[WhiteElo "2283"]
[BlackElo "2315"]
[Annotator "NA RC"]
[PlyCount "207"]
[EventDate "2021.10.12"]
[EventType "swiss"]
[EventCountry "RUS"]
[SourceTitle "playchess.com"]
[Source "ChessBase"]
[SourceQuality "1"]
[TimeControl "900+10"]

1. c4 {[%emt 0:00:04]} c6 {[%emt 0:00:06]} 2. d4 {[%emt 0:00:00]} d5 {[%emt 0:
00:01]} 3. Nf3 {[%emt 0:00:10]} Nf6 {[%emt 0:00:00]} 4. Nc3 {[%emt 0:00:01]} e6
{[%emt 0:00:25]} 5. e3 {[%emt 0:00:02]} Nbd7 {[%emt 0:00:03]} 6. Qc2 {[%emt 0:
00:00]} Bd6 {[%emt 0:00:08]} 7. g4 {[%emt 0:00:06]} h6 {[%emt 0:00:26]} 8. Rg1
{[%emt 0:00:10]} Qe7 {[%emt 0:00:23]} 9. Bd2 {[%emt 0:00:23]} b6 {[%emt 0:00:
55]} 10. O-O-O {[%emt 0:00:12]} Bb7 {[%emt 0:00:02]} 11. h4 {[%emt 0:02:45]}
dxc4 {[%emt 0:01:10]} 12. e4 {[%emt 0:00:26]} e5 {[%emt 0:00:12]} 13. g5 {
[%emt 0:00:20]} hxg5 {[%emt 0:00:08]} 14. hxg5 {[%emt 0:00:04]} Nh5 {[%emt 0:
00:33]} 15. Bxc4 {[%emt 0:01:57]} b5 {[%emt 0:00:16]} 16. Bb3 {[%emt 0:00:18]}
b4 {[%emt 0:02:36]} 17. Ne2 {[%emt 0:00:38]} c5 {[%emt 0:01:19]} 18. dxe5 {
[%emt 0:00:08]} Nxe5 {[%emt 0:00:01]} 19. Nxe5 {[%emt 0:01:19]} Qxe5 {[%emt 0:
00:48]} 20. Qc4 {[%emt 0:00:52]} O-O-O {[%emt 0:00:53]} 21. Bxb4 {[%emt 0:02:
44]} Qxe4 {[%emt 0:00:39]} 22. Rd4 {[%emt 0:01:55]} Bf4+ {[%emt 0:00:40]} 23.
Bd2 {[%emt 0:00:58]} Rxd4 {[%emt 0:01:00]} 24. Qxc5+ {[%emt 0:00:02]} Kb8 {
[%emt 0:00:07]} 25. Qxd4 {[%emt 0:00:09]} Rc8+ {[%emt 0:00:14]} 26. Kd1 {
[%emt 0:00:35]} Qb1+ {[%emt 0:00:58]} 27. Nc1 {[%emt 0:00:07]} Bf3+ {[%emt 0:
04:31]} 28. Ke1 {[%emt 0:00:00]} Rxc1+ {[%emt 0:00:17]} 29. Bxc1 {[%emt 0:00:
04]} Qxc1+ {[%emt 0:00:00]} 30. Bd1 {[%emt 0:00:02]} Bxd1 {[%emt 0:00:50]} 31.
Qxd1 {[%emt 0:00:02]} Qxd1+ {[%emt 0:00:10]} 32. Kxd1 {[%emt 0:00:01]} Be5 {
[%emt 0:00:14]} 33. g6 {[%emt 0:00:26]} fxg6 {[%emt 0:00:13]} 34. Rxg6 {
[%emt 0:00:00]} Bf6 {[%emt 0:00:08]} 35. Rg4 {[%emt 0:00:07]} Kc7 {[%emt 0:00:
05]} 36. Rc4+ {[%emt 0:00:07]} Kb6 {[%emt 0:00:00]} 37. b3 {[%emt 0:00:03]} a6
{[%emt 0:00:29]} 38. Re4 {[%emt 0:00:23]} Ba1 {[%emt 0:00:05]} 39. Kc2 {
[%emt 0:00:34]} Nf6 {[%emt 0:00:08]} 40. Rb4+ {[%emt 0:00:09]} Kc6 {[%emt 0:00:
03]} 41. Rc4+ {[%emt 0:00:04]} Kb7 {[%emt 0:00:10]} 42. b4 {[%emt 0:00:02]} Be5
{[%emt 0:00:03]} 43. a4 {[%emt 0:00:05]} Kb6 {[%emt 0:00:07]} 44. Kb3 {[%emt 0:
00:03]} Bd6 {[%emt 0:00:07]} 45. Rd4 {[%emt 0:00:15]} Kc6 {[%emt 0:00:05]} 46.
Kc4 {[%emt 0:00:08]} Nd7 {[%emt 0:00:03]} 47. b5+ {[%emt 0:00:44]} axb5+ {
[%emt 0:00:00]} 48. axb5+ {[%emt 0:00:00]} Kc7 {[%emt 0:00:00]} 49. Kd5 {
[%emt 0:00:06]} Nb6+ {[%emt 0:00:07]} 50. Ke6 {[%emt 0:00:00]} Ba3 {[%emt 0:00:
01]} 51. Rf4 {[%emt 0:00:11]} Nc8 {[%emt 0:01:08]} 52. Rf7+ {[%emt 0:00:14]}
Kb6 {[%emt 0:00:04]} 53. Rxg7 {[%emt 0:00:10]} Kxb5 {[%emt 0:00:01]} 54. f4 {
[%emt 0:00:01]} Kc6 {[%emt 0:00:24]} 55. f5 {[%emt 0:00:00]} Nd6 {[%emt 0:00:
13]} 56. f6 {[%emt 0:00:10]} Ne8 {[%emt 0:00:09]} 57. Rg3 {[%emt 0:00:20]} Nc7+
{[%emt 0:00:19]} 58. Kf7 {[%emt 0:00:05]} Bd6 {[%emt 0:00:07]} 59. Rc3+ {
[%emt 0:00:06]} Kd7 {[%emt 0:00:01]} 60. Rd3 {[%emt 0:00:00]} Ne6 {[%emt 0:00:
23]} 61. Re3 {[%emt 0:00:01]} Nc7 {[%emt 0:00:13]} 62. Rd3 {[%emt 0:01:04]} Ne6
{[%emt 0:00:10]} 63. Re3 {[%emt 0:00:09]} Nc7 {[%emt 0:00:05]} 64. Re2 {
[%emt 0:00:02]} Bc5 {[%emt 0:00:08]} 65. Kg8 {[%emt 0:00:09]} Ne6 {[%emt 0:00:
10]} 66. Kf7 {[%emt 0:00:11]} Nc7 {[%emt 0:00:06]} 67. Ra2 {[%emt 0:00:25]} Bd6
{[%emt 0:00:03]} 68. Kg6 {[%emt 0:00:16]} Ne6 {[%emt 0:00:04]} 69. Kf5 {
[%emt 0:00:04]} Nd4+ {[%emt 0:00:11]} 70. Kg6 {[%emt 0:00:08]} Ne6 {[%emt 0:00:
03]} 71. Ra7+ {[%emt 0:00:06]} Kc6 {[%emt 0:00:11]} 72. Kf7 {[%emt 0:00:08]}
Ng5+ {[%emt 0:00:05]} 73. Kg6 {[%emt 0:00:37]} Ne6 {[%emt 0:00:02]} 74. Ra5 {
[%emt 0:00:42]} Kd7 {[%emt 0:00:06]} 75. Kf7 {[%emt 0:00:06]} Nd8+ {[%emt 0:00:
04]} 76. Kg6 {[%emt 0:00:04]} Ne6 {[%emt 0:00:00]} 77. Ra1 {[%emt 0:00:07]} Bc5
{[%emt 0:00:44]} 78. Kf5 {[%emt 0:00:13]} Nf8 {[%emt 0:00:09]} 79. Ra6 {
[%emt 0:00:14]} Bd6 {[%emt 0:00:25]} 80. Ra7+ {[%emt 0:00:00]} Kc6 {[%emt 0:00:
00]} 81. Re7 {[%emt 0:00:10]} Bc5 {[%emt 0:00:26]} 82. Rf7 {[%emt 0:00:22]} Bd6
{[%emt 0:00:03]} 83. Ra7 {[%emt 0:00:20]} Bc5 {[%emt 0:00:04]} 84. Ra6+ {
[%emt 0:00:01]} Kb5 {[%emt 0:00:11]} 85. Ra8 {[%emt 0:00:27]} Bd6 {[%emt 0:00:
11]} 86. Rc8 {[%emt 0:00:03]} Kb6 {[%emt 0:00:08]} 87. f7 {[%emt 0:00:02]} Kb7
{[%emt 0:00:05]} 88. Rc2 {[%emt 0:00:02]} Be7 {[%emt 0:00:12]} 89. Ke5 {
[%emt 0:00:04]} Kb8 {[%emt 0:00:09]} 90. Kd5 {[%emt 0:00:02]} Kb7 {[%emt 0:00:
03]} 91. Re2 {[%emt 0:00:02]} Bf6 {[%emt 0:00:28]} 92. Kd6 {[%emt 0:00:03]} Bc3
{[%emt 0:00:25]} 93. Re4 {[%emt 0:00:11]} Bg7 {[%emt 0:00:15]} 94. Rg4 {
[%emt 0:00:07]} Bh6 {[%emt 0:00:10]} 95. Ke7 {[%emt 0:00:17]} Nh7 {[%emt 0:00:
05]} 96. Rg8 {[%emt 0:00:39]} Bd2 {[%emt 0:00:17]} 97. Rg4 {[%emt 0:00:41]} Bc1
{[%emt 0:00:03]} 98. Rb4+ {[%emt 0:00:04]} Ka6 {[%emt 0:00:01]} 99. Rb3 {
[%emt 0:00:36]} Bd2 {[%emt 0:00:22]} 100. Rb8 {[%emt 0:00:19]} Ka5 {[%emt 0:00:
06]} 101. Rh8 {[%emt 0:00:21]} Bb4+ {[%emt 0:00:04]} 102. Ke8 {[%emt 0:00:07]}
Nf6+ {[%emt 0:00:08]} 103. Kd8 {[%emt 0:00:01]} Ka4 {[%emt 0:00:27]} 104. Rh4 {
[%emt 0:00:00]} 1-0

[Event "RUS-ch Rapid 2021"]
[Site "Sochi"]
[Date "2021.10.13"]
[Round "7.24"]
[White "Smagin, Sergey"]
[Black "Grebnev, Aleksey"]
[Result "0-1"]
[ECO "B22"]
[WhiteElo "2551"]
[BlackElo "2469"]
[Annotator "RC"]
[PlyCount "73"]
[EventDate "2021.10.12"]
[EventType "swiss"]
[EventCountry "RUS"]
[SourceTitle "playchess.com"]
[Source "ChessBase"]
[SourceQuality "1"]
[TimeControl "900+10"]

1. e4 {[%emt 0:00:05]} c5 {[%emt 0:00:00]} 2. c3 {[%emt 0:00:03]} Nf6 {[%emt 0:
00:01]} 3. e5 {[%emt 0:00:00]} Nd5 {[%emt 0:00:05]} 4. Nf3 {[%emt 0:00:09]} Nc6
{[%emt 0:00:00]} 5. Na3 {[%emt 0:00:00]} e6 {[%emt 0:00:00]} 6. Nc4 {[%emt 0:
00:03]} Qc7 {[%emt 0:00:00]} 7. a4 {[%emt 0:05:28]} Nb6 {[%emt 0:02:42]} 8. d4
{[%emt 0:03:43]} Nxc4 {[%emt 0:00:10]} 9. Bxc4 {[%emt 0:00:00]} cxd4 {[%emt 0:
00:03]} 10. cxd4 {[%emt 0:00:06]} Nb4 {[%emt 0:00:45]} 11. Qe2 {[%emt 0:01:06]}
b6 {[%emt 0:02:16]} 12. O-O {[%emt 0:00:18]} Bb7 {[%emt 0:00:00]} 13. Bd2 {
[%emt 0:00:27]} Be7 {[%emt 0:00:48]} 14. Rfc1 {[%emt 0:00:21]} Qd8 {[%emt 0:00:
04]} 15. Bxb4 {[%emt 0:01:20]} Bxb4 {[%emt 0:00:04]} 16. Bd3 {[%emt 0:00:27]}
O-O {[%emt 0:00:49]} 17. Be4 {[%emt 0:00:14]} Bxe4 {[%emt 0:00:01]} 18. Qxe4 {
[%emt 0:00:00]} d5 {[%emt 0:00:07]} 19. Qd3 {[%emt 0:01:03]} a6 {[%emt 0:02:50]
} 20. Rc6 {[%emt 0:01:38]} b5 {[%emt 0:00:00]} 21. h3 {[%emt 0:00:17]} Qd7 {
[%emt 0:00:57]} 22. axb5 {[%emt 0:00:40]} axb5 {[%emt 0:00:00]} 23. Rxa8 {
[%emt 0:00:10]} Qxc6 {[%emt 0:00:02]} 24. Rxf8+ {[%emt 0:00:50]} Bxf8 {[%emt 0:
00:05]} 25. b3 {[%emt 0:00:06]} h6 {[%emt 0:00:15]} 26. g3 {[%emt 0:00:00]} Bb4
{[%emt 0:00:21]} 27. Kg2 {[%emt 0:00:00]} Ba3 {[%emt 0:00:16]} 28. h4 {[%emt 0:
00:00]} g6 {[%emt 0:02:12]} 29. h5 {[%emt 0:00:15]} gxh5 {[%emt 0:00:05]} 30.
Ng1 {[%emt 0:00:06]} Bc1 {[%emt 0:00:55]} 31. Ne2 {[%emt 0:00:02]} b4 {[%emt 0:
00:23]} 32. f4 {[%emt 0:00:47]} Bb2 {[%emt 0:00:32]} 33. f5 {[%emt 0:00:08]}
exf5 {[%emt 0:00:34]} 34. Nf4 {[%emt 0:00:20]} h4 {[%emt 0:02:01]} 35. Qxf5 {
[%emt 0:00:13]} Bxd4 {[%emt 0:00:21]} 36. gxh4 {[%emt 0:00:26]} Be3 {[%emt 0:
00:46]} 37. e6 {[%emt 0:00:19]} 0-1

[Event "RUS-ch Rapid 2021"]
[Site "Sochi"]
[Date "2021.10.13"]
[Round "8.1"]
[White "Riazantsev, Alexander"]
[Black "Tsydypov, Zhamsaran"]
[Result "1/2-1/2"]
[ECO "D30"]
[WhiteElo "2634"]
[BlackElo "2526"]
[Annotator "RC"]
[PlyCount "135"]
[EventDate "2021.10.12"]
[EventType "swiss"]
[EventCountry "RUS"]
[SourceTitle "playchess.com"]
[Source "ChessBase"]
[SourceQuality "1"]
[TimeControl "900+10"]

1. d4 {[%emt 0:00:05]} d5 {[%emt 0:00:08]} 2. c4 {[%emt 0:00:00]} e6 {[%emt 0:
00:02]} 3. Nf3 {[%emt 0:00:21]} Nf6 {[%emt 0:00:07]} 4. Bg5 {[%emt 0:00:21]}
Be7 {[%emt 0:00:19]} 5. e3 {[%emt 0:00:01]} Nbd7 {[%emt 0:00:18]} 6. Qc2 {
[%emt 0:00:10]} O-O {[%emt 0:00:14]} 7. cxd5 {[%emt 0:00:09]} Nxd5 {[%emt 0:02:
17]} 8. Bxe7 {[%emt 0:00:00]} Qxe7 {[%emt 0:01:18]} 9. e4 {[%emt 0:00:00]} N5f6
{[%emt 0:00:08]} 10. Bd3 {[%emt 0:00:00]} e5 {[%emt 0:00:17]} 11. Qxc7 {
[%emt 0:00:05]} exd4 {[%emt 0:00:07]} 12. O-O {[%emt 0:00:02]} Nxe4 {[%emt 0:
01:02]} 13. Bxe4 {[%emt 0:01:29]} Qxe4 {[%emt 0:00:08]} 14. Rd1 {[%emt 0:00:01]
} Re8 {[%emt 0:01:52]} 15. Nbd2 {[%emt 0:03:21]} Qd5 {[%emt 0:00:18]} 16. Nf1 {
[%emt 0:03:42]} d3 {[%emt 0:00:29]} 17. Qc3 {[%emt 0:02:55]} Nc5 {[%emt 0:01:
23]} 18. Ne3 {[%emt 0:00:00]} Qd6 {[%emt 0:00:40]} 19. Rac1 {[%emt 0:00:16]} b6
{[%emt 0:00:37]} 20. b4 {[%emt 0:00:00]} Ne4 {[%emt 0:00:10]} 21. Qxd3 {
[%emt 0:00:00]} Qxd3 {[%emt 0:00:14]} 22. Rxd3 {[%emt 0:00:00]} Be6 {[%emt 0:
00:03]} 23. Nd4 {[%emt 0:01:49]} Bxa2 {[%emt 0:01:38]} 24. Ra3 {[%emt 0:00:38]}
Be6 {[%emt 0:00:14]} 25. Nxe6 {[%emt 0:00:00]} fxe6 {[%emt 0:00:10]} 26. Rc7 {
[%emt 0:01:17]} a5 {[%emt 0:00:09]} 27. bxa5 {[%emt 0:00:00]} bxa5 {[%emt 0:00:
36]} 28. f3 {[%emt 0:01:10]} Nd6 {[%emt 0:00:21]} 29. Rc5 {[%emt 0:00:03]} a4 {
[%emt 0:00:17]} 30. Nc4 {[%emt 0:00:00]} Red8 {[%emt 0:00:16]} 31. Nb6 {
[%emt 0:01:38]} Rab8 {[%emt 0:01:08]} 32. Nxa4 {[%emt 0:00:01]} Rb1+ {[%emt 0:
00:00]} 33. Kf2 {[%emt 0:00:00]} Nf5 {[%emt 0:00:06]} 34. Rc2 {[%emt 0:00:28]}
Rh1 {[%emt 0:00:31]} 35. Nc3 {[%emt 0:00:27]} Rxh2 {[%emt 0:00:04]} 36. Kg1 {
[%emt 0:00:15]} Rh6 {[%emt 0:00:18]} 37. Raa2 {[%emt 0:00:15]} Rg6 {[%emt 0:00:
07]} 38. Kh2 {[%emt 0:00:20]} h5 {[%emt 0:00:17]} 39. Rd2 {[%emt 0:00:04]} Rc8
{[%emt 0:00:00]} 40. Ne4 {[%emt 0:00:08]} Ne3 {[%emt 0:00:02]} 41. Ra1 {
[%emt 0:00:12]} h4 {[%emt 0:00:16]} 42. Re1 {[%emt 0:00:01]} Nf5 {[%emt 0:00:
17]} 43. Nd6 {[%emt 0:00:10]} Nxd6 {[%emt 0:00:43]} 44. Rxd6 {[%emt 0:00:00]}
Rc2 {[%emt 0:00:04]} 45. Rg1 {[%emt 0:00:04]} Kf7 {[%emt 0:00:16]} 46. Rd4 {
[%emt 0:00:01]} Rg3 {[%emt 0:00:20]} 47. Rf4+ {[%emt 0:00:42]} Ke7 {[%emt 0:00:
02]} 48. Rxh4 {[%emt 0:00:09]} Rxf3 {[%emt 0:00:04]} 49. Rg4 {[%emt 0:00:00]}
Kf6 {[%emt 0:00:01]} 50. Rc1 {[%emt 0:00:26]} Rff2 {[%emt 0:00:32]} 51. Rxc2 {
[%emt 0:00:02]} Rxc2 {[%emt 0:00:00]} 52. Rf4+ {[%emt 0:00:17]} Ke5 {[%emt 0:
00:05]} 53. Rf7 {[%emt 0:00:05]} g5 {[%emt 0:00:00]} 54. Kg3 {[%emt 0:00:03]}
Rc4 {[%emt 0:00:05]} 55. Rg7 {[%emt 0:00:05]} Kf6 {[%emt 0:00:03]} 56. Rg8 {
[%emt 0:00:00]} Ra4 {[%emt 0:00:34]} 57. Rf8+ {[%emt 0:00:13]} Kg7 {[%emt 0:00:
07]} 58. Rb8 {[%emt 0:00:07]} Kf7 {[%emt 0:00:06]} 59. Rc8 {[%emt 0:00:02]} Rd4
{[%emt 0:00:45]} 60. Kf3 {[%emt 0:00:09]} Kf6 {[%emt 0:00:13]} 61. Rf8+ {
[%emt 0:00:12]} Ke5 {[%emt 0:00:02]} 62. Rg8 {[%emt 0:00:00]} Rf4+ {[%emt 0:00:
19]} 63. Ke3 {[%emt 0:00:28]} Kf5 {[%emt 0:00:17]} 64. Rf8+ {[%emt 0:00:13]}
Kg4 {[%emt 0:00:20]} 65. Rxf4+ {[%emt 0:00:05]} gxf4+ {[%emt 0:00:02]} 66. Ke4
{[%emt 0:00:12]} Kg3 {[%emt 0:00:07]} 67. Ke5 {[%emt 0:00:00]} Kxg2 {[%emt 0:
00:06]} 68. Kxf4 {[%emt 0:00:00]} 1/2-1/2

[Event "RUS-ch Rapid 2021"]
[Site "Sochi"]
[Date "2021.10.13"]
[Round "8.2"]
[White "Sjugirov, Sanan"]
[Black "Iljiushenok, Ilia"]
[Result "1/2-1/2"]
[ECO "E81"]
[WhiteElo "2663"]
[BlackElo "2554"]
[Annotator "RC"]
[PlyCount "81"]
[EventDate "2021.10.12"]
[EventType "swiss"]
[EventCountry "RUS"]
[SourceTitle "playchess.com"]
[Source "ChessBase"]
[SourceQuality "1"]
[TimeControl "900+10"]

1. d4 {[%emt 0:00:10]} Nf6 {[%emt 0:00:15]} 2. c4 {[%emt 0:00:00]} g6 {[%emt 0:
00:08]} 3. Nc3 {[%emt 0:00:05]} Bg7 {[%emt 0:00:00]} 4. e4 {[%emt 0:00:10]} d6
{[%emt 0:00:00]} 5. f3 {[%emt 0:01:15]} O-O {[%emt 0:00:00]} 6. Nge2 {[%emt 0:
00:08]} Nbd7 {[%emt 0:00:48]} 7. Be3 {[%emt 0:00:17]} a6 {[%emt 0:00:00]} 8.
Qd2 {[%emt 0:00:14]} b5 {[%emt 0:00:04]} 9. Bh6 {[%emt 0:00:18]} Bxh6 {[%emt 0:
00:18]} 10. Qxh6 {[%emt 0:00:04]} c5 {[%emt 0:00:00]} 11. h4 {[%emt 0:00:50]}
b4 {[%emt 0:00:45]} 12. Nd5 {[%emt 0:00:26]} e6 {[%emt 0:04:44]} 13. Ne3 {
[%emt 0:00:31]} Qa5 {[%emt 0:00:25]} 14. b3 {[%emt 0:04:57]} cxd4 {[%emt 0:07:
46]} 15. Nxd4 {[%emt 0:00:04]} Qe5 {[%emt 0:00:00]} 16. O-O-O {[%emt 0:01:57]}
d5 {[%emt 0:00:00]} 17. exd5 {[%emt 0:00:39]} exd5 {[%emt 0:00:00]} 18. Qg5 {
[%emt 0:00:16]} Bb7 {[%emt 0:00:30]} 19. Qxe5 {[%emt 0:01:44]} Nxe5 {[%emt 0:
00:04]} 20. cxd5 {[%emt 0:00:04]} Nxd5 {[%emt 0:00:29]} 21. Nxd5 {[%emt 0:00:
00]} Bxd5 {[%emt 0:00:04]} 22. Kb2 {[%emt 0:00:07]} a5 {[%emt 0:00:17]} 23. Bb5
{[%emt 0:00:04]} Rad8 {[%emt 0:00:40]} 24. Rhe1 {[%emt 0:00:05]} f6 {[%emt 0:
00:04]} 25. Rd2 {[%emt 0:01:20]} Bf7 {[%emt 0:00:17]} 26. Red1 {[%emt 0:00:47]}
Rd5 {[%emt 0:00:19]} 27. f4 {[%emt 0:00:13]} Ng4 {[%emt 0:00:27]} 28. Bc4 {
[%emt 0:00:04]} Ne3 {[%emt 0:00:13]} 29. Bxd5 {[%emt 0:00:14]} Nxd1+ {[%emt 0:
00:00]} 30. Rxd1 {[%emt 0:00:00]} Bxd5 {[%emt 0:00:00]} 31. Rd2 {[%emt 0:00:46]
} Re8 {[%emt 0:00:05]} 32. Nb5 {[%emt 0:00:04]} Bc6 {[%emt 0:00:14]} 33. Nd6 {
[%emt 0:00:04]} Re1 {[%emt 0:00:26]} 34. g4 {[%emt 0:01:13]} Rf1 {[%emt 0:00:
37]} 35. f5 {[%emt 0:00:47]} gxf5 {[%emt 0:00:22]} 36. Nxf5 {[%emt 0:00:00]}
Be4 {[%emt 0:00:20]} 37. Rd8+ {[%emt 0:00:09]} Kf7 {[%emt 0:00:00]} 38. Rd7+ {
[%emt 0:00:08]} Kf8 {[%emt 0:00:19]} 39. Rd8+ {[%emt 0:00:04]} Kf7 {[%emt 0:00:
04]} 40. Rd7+ {[%emt 0:00:30]} Kf8 {[%emt 0:00:00]} 41. Rd8+ {[%emt 0:00:04]}
1/2-1/2

[Event "RUS-ch Rapid 2021"]
[Site "Sochi"]
[Date "2021.10.13"]
[Round "8.3"]
[White "Kokarev, Dmitry"]
[Black "Moiseenko, Vadim"]
[Result "1/2-1/2"]
[ECO "C70"]
[WhiteElo "2579"]
[BlackElo "2542"]
[Annotator "ChessBase"]
[PlyCount "65"]
[EventDate "2021.10.12"]
[EventType "swiss"]
[EventCountry "RUS"]
[SourceTitle "playchess.com"]
[Source "ChessBase"]
[SourceQuality "1"]
[TimeControl "900+10"]

1. e4 {[%emt 0:00:00]} e5 {[%emt 0:00:18]} 2. Nf3 {[%emt 0:00:03]} Nc6 {
[%emt 0:00:03]} 3. Bb5 {[%emt 0:00:02]} a6 {[%emt 0:00:02]} 4. Ba4 {[%emt 0:00:
04]} g6 {[%emt 0:00:34]} 5. d4 {[%emt 0:00:24]} exd4 {[%emt 0:00:00]} 6. Bg5 {
[%emt 0:00:03]} Be7 {[%emt 0:00:00]} 7. Bxe7 {[%emt 0:00:03]} Ngxe7 {[%emt 0:
00:51]} 8. Nxd4 {[%emt 0:00:11]} O-O {[%emt 0:00:20]} 9. O-O {[%emt 0:00:02]}
b5 {[%emt 0:01:05]} 10. Nxc6 {[%emt 0:00:37]} dxc6 {[%emt 0:00:48]} 11. Bb3 {
[%emt 0:00:00]} c5 {[%emt 0:00:14]} 12. c3 {[%emt 0:00:22]} Bb7 {[%emt 0:00:18]
} 13. Qe2 {[%emt 0:00:25]} Qd6 {[%emt 0:00:07]} 14. Nd2 {[%emt 0:00:17]} Rad8 {
[%emt 0:02:54]} 15. Rad1 {[%emt 0:00:11]} c4 {[%emt 0:00:26]} 16. Bc2 {[%emt 0:
00:00]} Qe6 {[%emt 0:00:54]} 17. Nf3 {[%emt 0:00:32]} Nc6 {[%emt 0:00:13]} 18.
Qe3 {[%emt 0:00:05]} Rfe8 {[%emt 0:00:29]} 19. h3 {[%emt 0:00:24]} Kg7 {
[%emt 0:00:10]} 20. Ng5 {[%emt 0:00:16]} Qe7 {[%emt 0:00:19]} 21. f4 {[%emt 0:
00:05]} f6 {[%emt 0:00:25]} 22. Nf3 {[%emt 0:00:04]} Rxd1 {[%emt 0:01:49]} 23.
Rxd1 {[%emt 0:00:00]} Rd8 {[%emt 0:00:03]} 24. Rxd8 {[%emt 0:00:24]} Nxd8 {
[%emt 0:00:17]} 25. e5 {[%emt 0:00:46]} Bxf3 {[%emt 0:00:20]} 26. exf6+ {
[%emt 0:00:09]} Kxf6 {[%emt 0:00:17]} 27. Qxf3 {[%emt 0:00:01]} Qe1+ {[%emt 0:
00:14]} 28. Kh2 {[%emt 0:02:07]} Qc1 {[%emt 0:01:25]} 29. Qf2 {[%emt 0:01:16]}
Ne6 {[%emt 0:00:42]} 30. Qh4+ {[%emt 0:00:06]} Kg7 {[%emt 0:00:02]} 31. Qe7+ {
[%emt 0:00:19]} Kh6 {[%emt 0:00:00]} 32. Qh4+ {[%emt 0:00:35]} Kg7 {[%emt 0:00:
01]} 33. Qe7+ {[%emt 0:04:14]} 1/2-1/2